Cogmind - Beta 14 @@@ ROGUE MODE // 2024.10.26 @ 22:22:50 Player: KTG-V3 Result: Establishing 0b11! Performance ------------- Evolutions (9) 4500 Regions Visited (29) 5800 Robots Destroyed (402) 2010 Value Destroyed (13608) 13608 Prototype IDs (311) 6220 Alien Tech Used (3) 600 Bonus (33207) 33207 TOTAL SCORE: 65945 Bonus ------- High Alert Combat Kills 1233 Follower Combat Kills 1885 Aligned with FarCom 300 Met Data Miner 300 Met Imprinter 300 Met Zhirov 300 Met Warlord at Base 500 MAIN.C Attacked Warlord 500 Warlord Defense Kills 698 Met Warlord at Research 2000 Destroyed MAIN.C Guards 500 Met MAIN.C 5000 Destroyed MAIN.C Shell 5000 Destroyed MAIN.C 10000 Met Warlord at Command 2000 Win 3000 Friendly Fire -309 Cogmind --------- Core Integrity 619/1600 Matter 262/300 Energy 870/875 System Corruption 24% Temperature Cool (6) Movement Hovering (97) Ox1 Location 0b11 Command Parts ------- > --- POWER (2) -------- Antimatter Reactor > --- PROPULSION (9) --- Improved Antigrav System Cooled Antigrav System Cooled Antigrav System Cooled Antigrav System Cooled Linear Gravjet Combat Linear Gravjet Combat Linear Gravjet > --- UTILITY (11) ----- High-capacity Storage Unit Compact Battery Energy Well Improved Melee Analysis Suite Experimental Melee Analysis Suite Core Analyzer Nanoactuators Nanoactuators Improved Weapon Shielding Experimental Powered Armor > --- WEAPON (4) ------- Phasing Sabre Phasing Sabre Enhanced Force Lance Enhanced Force Lance > --- INVENTORY (20) --- Armored Heavy Treads Advanced Cooling System Advanced Cooling System Improved Transmission Jammer Improved Phase Shifter Graphene Brace Advanced Force Field Linear Accelerator Linear Accelerator Ragnarok Missile Launcher Phasing Sabre Peak State ------------ > --- POWER ------------ Micro Antimatter Reactor Light Quantum Reactor > --- PROPULSION ------- Combat Airjet Combat Airjet Improved Antigrav System Improved Antigrav System Improved Antigrav System Improved Antigrav System Combat Antigrav System Combat Antigrav System Combat Linear Gravjet > --- UTILITY ---------- High-capacity Storage Unit Experimental Melee Analysis Suite Experimental Melee Analysis Suite Nanoactuators Nanoactuators Improved Transmission Jammer Hacking Suite Hacking Suite System Mapper Advanced System Shield Advanced System Shield > --- WEAPON ----------- Phasing Sabre Kinetic Spear Enhanced Force Lance Enhanced Force Lance > --- INVENTORY -------- Micro Antimatter Reactor Micro Antimatter Reactor Micro Antimatter Reactor Improved Antigrav System Improved Antigrav System Improved Linear Gravjet Combat Linear Gravjet Combat Linear Gravjet Compact Battery Core Analyzer Graphene Brace Advanced Force Field Antimissile System Antimissile System Antimissile System Improved Hacking Suite Improved Component Analysis Suite Advanced Trap Extractor HERF Cannon Nova Cannon [Rating: 187] Favorites ----------- Power Micro Nuclear Core Engine Ion Engine Power Core Micro Nuclear Core Reactor Micro Antimatter Reactor Propulsion Combat Airjet Treads Light Treads Hover Unit Combat Airjet Utility Hacking Suite Device Advanced Sensor Array Storage Large Storage Unit Processor Advanced Signal Interpreter Hackware Hacking Suite Protection Powered Armor Weapon Kinetic Spear Energy Gun Small Laser Energy Cannon Advanced Beam Cannon Ballistic Gun Light Assault Rifle Ballistic Cannon Advanced Assault Cannon Launcher Mini Smartbomb Launcher Special Weapon Mining Laser Impact Weapon Shock Maul Slashing Weapon Falx Piercing Weapon Kinetic Spear Special Melee Weapon Datajack Build | -11 -10 -10 -10 -9 -8 -7 -7 -7 -7 -6 -6 -6 -6 -6 -5 -5 -5 -5 -5 -4 -4 -4 -4 -4 -3 -3 -2 -1 -1 ------- Run | Yrd Mat Min Exi Min Mat Fac Low Low Zio Pro Fac Low Low Dat Pro Fac Upp Upp War Pro Fac Upp Upp Zhi Pro Res Res Acc Com Slots Evolved 18 | . . . . . 4 2 . . . . 2 . . . . 2 . . . . 2 . . . . 2 2 2 . Power 1 | . . . . . . . . . . . . . . . . 1 . . . . . . . . . . . . . Propulsion 6 | . . . . . 1 1 . . . . . . . . . 1 . . . . 1 . . . . 1 1 . . Utility 9 | . . . . . 3 1 . . . . 2 . . . . . . . . . 1 . . . . 1 1 . . Weapon 2 | . . . . . . . . . . . . . . . . . . . . . . . . . . . . 2 . Parts Attached 657 | 7 20 2 . 7 64 60 13 11 11 17 58 6 15 1 8 76 5 4 11 14 54 13 1 7 6 45 39 25 57 Power 44 | 1 1 . . 1 5 1 . 1 . 1 . . . . . 3 . . 1 1 5 2 . 1 . 4 3 5 8 Engine 9 | 1 1 . . 1 4 . . . . . . . . . . 1 . . . 1 . . . . . . . . . Core 15 | . . . . . 1 1 . 1 . 1 . . . . . 2 . . . . 5 2 . . . 2 . . . Reactor 20 | . . . . . . . . . . . . . . . . . . . 1 . . . . 1 . 2 3 5 8 Propulsion 85 | 2 . . . . 12 13 . 2 . . 8 . . . . 10 . . 1 . 5 . . . . 4 8 2 18 Treads 11 | 2 . . . . 9 . . . . . . . . . . . . . . . . . . . . . . . . Leg . | . . . . . . . . . . . . . . . . . . . . . . . . . . . . . . Wheel . | . . . . . . . . . . . . . . . . . . . . . . . . . . . . . . Hover 74 | . . . . . 3 13 . 2 . . 8 . . . . 10 . . 1 . 5 . . . . 4 8 2 18 Flight . | . . . . . . . . . . . . . . . . . . . . . . . . . . . . . . Utility 322 | 2 7 . . . 21 16 9 4 7 6 27 5 11 1 1 49 2 3 8 13 28 9 . 6 4 28 23 8 24 Device 175 | 1 1 . . . 8 5 6 3 1 3 15 4 10 1 1 19 2 3 3 7 22 5 . 3 4 19 13 4 12 Storage 14 | 1 1 . . . 2 . . . . . . . . . . 1 . . 1 1 . 1 . . . 2 1 1 2 Processor 19 | . 1 . . . 1 1 1 . 5 . 2 1 . . . . . . . . . . . . . 1 2 . 4 Hackware 26 | . . . . . 4 4 . . . . 7 . . . . 4 . . 1 . 1 . . . . 1 1 1 2 Protection 88 | . 4 . . . 6 6 2 1 1 3 3 . 1 . . 25 . . 3 5 5 3 . 3 . 5 6 2 4 Artifact . | . . . . . . . . . . . . . . . . . . . . . . . . . . . . . . Weapon 206 | 2 12 2 . 6 26 30 4 4 4 10 23 1 4 . 7 14 3 1 1 . 16 2 1 . 2 9 5 10 7 Energy Gun 12 | 1 4 . . 2 1 4 . . . . . . . . . . . . . . . . . . . . . . . Energy Cannon 37 | . 3 1 . 2 15 . . . . . . . 1 . . 1 . . . . 4 . . . 1 3 2 2 2 Ballistic Gun 6 | 1 3 . . . 2 . . . . . . . . . . . . . . . . . . . . . . . . Ballistic Cannon 10 | . . . . 1 . 3 . . . 1 5 . . . . . . . . . . . . . . . . . . Launcher 44 | . 1 1 . . 5 5 2 1 1 2 4 . 1 . 1 4 2 . 1 . 4 1 . . . 2 3 3 . Special Weapon 5 | . . . . 1 . . . . 1 2 1 . . . . . . . . . . . . . . . . . . Impact Weapon 21 | . . . . . . 2 . . 1 . 8 1 1 . 1 7 . . . . . . . . . . . . . Slashing Weapon 40 | . . . . . 3 9 2 3 1 5 5 . . . 5 . . . . . . . 1 . . . . 1 5 Piercing Weapon 22 | . . . . . . . . . . . . . . . . 2 1 1 . . 8 1 . . 1 4 . 4 . Special Melee Weapon 9 | . 1 . . . . 7 . . . . . . 1 . . . . . . . . . . . . . . . . Unidentified Prototypes 30 | . 2 . . . 4 . . 1 5 . 4 . . . . 1 . . 4 . . . . 4 . 1 1 . 3 Corrupted Parts 2 | . . . . . . . . . . . . . . . . . . . . . . . . . . . . . 2 System Corruption 12 | . . . . . . . . . . . . . . . . . . . . . . . . . . . . . 12 Parts Lost 66 | . . . . 1 2 9 . 4 . 3 3 . . . . 3 . . . . 1 . . . . 3 . 6 31 Power 12 | . . . . 1 . . . 1 . 1 . . . . . 1 . . . . . . . . . . . 1 7 Propulsion 29 | . . . . . . 6 . 2 . 1 1 . . . . . . . . . . . . . . 2 . . 17 Utility 19 | . . . . . 2 2 . . . 1 2 . . . . 1 . . . . 1 . . . . 1 . 4 5 Weapon 6 | . . . . . . 1 . 1 . . . . . . . 1 . . . . . . . . . . . 1 2 Highest Loss Streak 18 | . . . . 1 2 2 . 2 . 2 1 . . . . 1 . . . . 1 . . . . 2 . 1 18 To Critical Strikes . | . . . . . . . . . . . . . . . . . . . . . . . . . . . . . . Average Slot Usage (%) 95 | . 99 100 100 95 98 95 100 88 89 91 91 93 93 93 88 94 100 100 100 99 96 94 95 91 93 96 96 92 90 Engine 3 | . 14 14 14 13 8 . . . . . . . . . . 2 5 5 4 4 1 . . . . . . . . Core 3 | . . . . . . 7 7 7 7 6 6 6 6 6 6 7 5 5 5 . 3 9 10 3 . . . . . Reactor 1 | . . . . . . . . . . . . . . . . . . . . 5 4 . . 3 5 7 8 7 6 Treads 6 | . 28 28 28 28 26 . . . . . . . . . . . . . . . . . . . . . . . . Hover 23 | . . . . . . 29 30 29 28 27 25 25 25 25 25 29 33 33 33 33 35 35 35 35 35 35 36 34 28 Device 6 | . 1 . . . 16 1 6 4 6 6 6 6 7 6 6 2 5 5 6 5 8 10 10 10 13 14 13 8 6 Storage 6 | . 14 14 14 14 9 7 7 7 7 7 6 6 6 6 6 5 5 5 5 5 5 5 5 5 5 4 4 3 5 Processor 3 | . . . . . . 3 7 7 7 7 1 5 6 6 6 5 5 5 5 5 5 5 5 5 5 3 4 3 5 Hackware 16 | . . . . . 6 24 23 22 21 21 28 25 25 25 25 21 16 16 16 16 14 10 10 10 10 12 13 17 20 Protection 7 | . 12 14 14 14 13 3 . 2 . . 5 6 4 6 6 7 11 11 9 9 9 9 10 10 10 5 6 3 . Energy Gun 1 | . 19 . . 3 . . . . . . . . . . . . . . . . . . . . . . . . . Energy Cannon 3 | . 5 27 28 11 16 . . . . . . . . . . . . . . . . . . . 1 1 . . . Impact Weapon 1 | . . . . . . . . . 1 7 4 6 4 6 2 4 . . . . . . . . . . . . . Slashing Weapon 3 | . . . . . . 6 6 3 6 6 5 6 6 6 4 4 . . . . . . 3 5 5 . . 3 3 Piercing Weapon 2 | . . . . . . . . . . . . . . . . . 10 11 9 5 7 7 1 . . 5 4 4 9 Special Melee Weapon 1 | . . . . . . 6 7 1 . . . . 1 . . . . . . . . . . . . . . . . Peak Build Rating 187 | 7 13 13 14 24 39 55 48 48 61 56 75 79 79 79 79 101 99 99 113 114 128 125 124 126 122 150 168 181 187 Average Rating 76 | 5 8 12 13 15 30 42 47 44 51 52 64 78 77 79 74 91 99 99 103 110 122 124 123 121 119 139 160 165 164 On Entrance 77 | . 7 13 13 14 13 30 47 48 45 54 46 74 79 79 79 73 100 99 99 113 110 120 124 124 121 119 145 168 172 Naked Turns . | . . . . . . . . . . . . . . . . . . . . . . . . . . . . . . Heaviest Build 108 | 11 36 36 36 36 106 45 44 39 46 41 53 47 49 47 44 69 65 65 63 71 91 85 82 84 84 96 92 98 108 Greatest Support 110 | 40 40 40 40 40 69 42 42 45 45 45 57 56 56 56 56 72 72 72 73 73 85 85 85 85 85 97 110 110 102 Greatest Overweight (x) 25 | . . . . . 1 1 1 1 1 . 1 . . . . 1 . . . . 1 . . . . 1 1 1 25 Average Overweight (x) . | . . . . . . . . . . . . . . . . . . . . . . . . . . . . . . Largest Inventory Capacity 25 | 8 15 15 15 15 25 15 15 15 15 15 15 15 15 15 15 15 15 15 15 20 20 20 20 20 20 20 20 20 20 Average Capacity 16 | 7 11 15 15 15 19 15 15 15 15 15 15 15 15 15 15 15 15 15 15 19 20 20 20 20 20 20 20 20 20 Most Carried 25 | 6 15 15 15 15 25 15 15 15 15 15 15 15 15 14 15 15 15 15 15 19 20 18 18 20 20 20 20 20 20 Average Carried 15 | 3 10 15 14 14 17 13 15 13 14 14 14 15 14 14 14 14 15 15 15 16 17 17 17 19 19 19 19 17 17 Final Capacity 20 | 8 15 15 15 15 15 15 15 15 15 15 15 15 15 15 15 15 15 15 15 20 20 20 20 20 20 20 20 20 20 Final Carried 20 | 6 15 15 15 15 11 15 15 12 15 12 15 15 14 14 15 15 15 15 15 17 19 17 18 20 20 20 20 15 12 Class Distribution -------------------- 46% | Hacker-Mutant 20% | Mutant 10% | Machinist-Mutant 6% | Wizard-Gladiator 6% | Scavenger-Mutant 3% | Hacker-Scout 3% | Hacker-Gladiator Dominant Class ---------------- Mutant | -10/Materials Mutant | -10/Mines Mutant | -10/Exiles Mutant | -9/Mines Mutant | -8/Materials Hacker-Mutant | -7/Factory Scavenger-Mutant | -7/Lower Caves Hacker-Mutant | -7/Lower Caves Hacker-Mutant | -7/Zion Hacker-Mutant | -6/Proximity Caves Hacker-Mutant | -6/Factory Hacker-Mutant | -6/Lower Caves Hacker-Mutant | -6/Lower Caves Hacker-Mutant | -6/Data Miner Hacker-Mutant | -5/Proximity Caves Hacker-Mutant | -5/Factory Machinist-Mutant | -5/Upper Caves Machinist-Mutant | -5/Upper Caves Machinist-Mutant | -5/Warlord Hacker-Mutant | -4/Proximity Caves Hacker-Mutant | -4/Factory Machinist-Mutant | -4/Upper Caves Machinist-Mutant | -4/Upper Caves Machinist-Mutant | -4/Zhirov Machinist-Mutant | -3/Proximity Caves Hacker-Mutant | -3/Research Hacker-Mutant | -2/Research Wizard-Gladiator | -1/Access Wizard-Gladiator | -1/Command Resources | -11 -10 -10 -10 -9 -8 -7 -7 -7 -7 -6 -6 -6 -6 -6 -5 -5 -5 -5 -5 -4 -4 -4 -4 -4 -3 -3 -2 -1 -1 ----------- Run | Yrd Mat Min Exi Min Mat Fac Low Low Zio Pro Fac Low Low Dat Pro Fac Upp Upp War Pro Fac Upp Upp Zhi Pro Res Res Acc Com Matter Collected 9832 | 274 185 93 . 70 742 768 160 89 60 274 656 261 236 . . 1363 101 84 346 250 849 289 178 99 148 644 394 693 526 Remotely 30 | 10 20 . . . . . . . . . . . . . . . . . . . . . . . . . . . . Salvage Created 16941 | 67 729 52 . 4 2567 1484 20 95 . 339 1027 290 252 . 2 1865 64 51 178 350 1276 194 234 386 98 867 358 1385 2707 Parts 807 | 7 59 8 . 3 168 79 3 6 . 11 30 4 6 . 2 68 4 4 7 6 65 11 5 2 7 72 17 61 92 Haulers Intercepted 17 | . 2 . . . 5 5 . . . . 2 . . . . 3 . . . . . . . . . . . . . Recyclers Shooed 6 | 1 1 1 . . 1 . . . . . . . . . . 1 . . . . 1 . . . . . . . . Parts Field Recycled . | . . . . . . . . . . . . . . . . . . . . . . . . . . . . . . Retrieved Matter . | . . . . . . . . . . . . . . . . . . . . . . . . . . . . . . Parts Self-Destructed 79 | . . . . . . . 4 6 . 9 . 4 5 . . . 3 4 . 11 . 11 6 1 15 . . . . Prevented 2 | . . . . . . . . . . . . . . . . . . . . . . . 2 . . . . . . Kills | -11 -10 -10 -10 -9 -8 -7 -7 -7 -7 -6 -6 -6 -6 -6 -5 -5 -5 -5 -5 -4 -4 -4 -4 -4 -3 -3 -2 -1 -1 ------- Run | Yrd Mat Min Exi Min Mat Fac Low Low Zio Pro Fac Low Low Dat Pro Fac Upp Upp War Pro Fac Upp Upp Zhi Pro Res Res Acc Com Combat Hostiles Destroyed 256 | . 18 3 . 1 44 24 2 2 . 15 13 1 4 . 1 19 4 1 6 6 23 7 3 . 7 13 5 22 12 Melee 66 | . . . . . . 5 . 1 . . 8 1 3 . . 2 . 1 . . 11 . . . . 11 1 10 12 Guns 31 | . 17 . . 1 8 5 . . . . . . . . . . . . . . . . . . . . . . . Cannons 26 | . . . . . 23 . . . . 2 1 . . . . . . . . . . . . . . . . . . AOE 128 | . 1 3 . . 11 13 2 1 . 13 4 . 1 . 1 15 4 . 6 6 12 7 3 . 7 2 4 12 . Classes Destroyed 24 | 2 7 . . 1 5 3 . . . 1 2 . . . 1 . . . 2 . . . . . . . . . . Worker 36 | . 1 . . . 5 7 . . . . 2 . . . . 11 . . . . 2 . . . . 1 . 2 5 Builder 17 | . 1 1 . . 3 1 . . . . 3 . . . . 3 . . . . 1 . . . . 3 . 1 . Tunneler 8 | 1 . . . . . 2 . . . . 2 . . . . 2 . . . . . . . . . 1 . . . Hauler 17 | . 2 . . . 5 5 . . . . 2 . . . . 3 . . . . . . . . . . . . . Recycler 24 | 1 2 . . . 6 5 . . . . 1 . . . . 5 . . . . 2 . . . . . 1 1 . Minesweeper 5 | . . . . . . . . . . 1 . . 3 . . . . . . 1 . . . . . . . . . Mechanic 3 | . . . . . . 1 . . . . 1 . . . . 1 . . . . . . . . . . . . . Operator 10 | . 2 . . . 2 2 . . . . 1 . . . . 1 . . . . . . . . . . . 1 1 Drone 3 | . . . . . . . . . . . . . . . 1 . . . . . . . . . 2 . . . . Watcher 28 | . 1 . . . 5 3 . . . . 4 . . . . 6 . . . . 1 . . . . 2 1 2 3 Swarmer 98 | . 12 3 . . 10 12 2 1 . 5 4 . . . . 13 4 . . 4 5 5 . . 5 3 4 6 . Cutter 4 | . . . . . 4 . . . . . . . . . . . . . . . . . . . . . . . . Saboteur 1 | . . . . . . . . . . . . . . . . . . . 1 . . . . . . . . . . Grunt 64 | . 6 . . . 18 5 . . . 3 . . 3 . . 2 . . 2 2 9 2 1 . . 1 . 9 1 Brawler 4 | . . . . . . 1 . . . 3 . . . . . . . . . . . . . . . . . . . Duelist 3 | . . . . . 1 1 . . . 1 . . . . . . . . . . . . . . . . . . . Protector 2 | . . . . . 1 . . . . 1 . . . . . . . . . . . . . . . . . . . Sentry 16 | . . . . . 9 . . . . 2 2 . . . . . . . . . 1 . . . . . . 2 . Demolisher 1 | . . . . 1 . . . . . . . . . . . . . . . . . . . . . . . . . Specialist 1 | . . . . . . . . . . . . . . . . . . . 1 . . . . . . . . . . Hunter 10 | . . . . . . . . . . . 2 . . . . . . . . . . . 2 . . 2 . 2 2 Programmer 43 | . . . . . . 5 . 1 . . 3 1 1 . . 3 . 1 2 . 8 . . . . 7 1 3 7 Heavy 1 | . . . . . 1 . . . . . . . . . . . . . . . . . . . . . . . . Decomposer 2 | . . . . . . . . 1 . . . . . . . . . . . . . 1 . . . . . . . Packrat 1 | . . . . . . . . . . . . . . . . . . . . . . . 1 . . . . . . Assembled 2 | . . . . . . . . . . . 2 . . . . . . . . . . . . . . . . . . Thug 1 | . . . . . . . . . . . . . . . . 1 . . . . . . . . . . . . . Best Kill Streak 12 | 2 3 3 . 1 7 8 2 1 . 11 5 1 2 . 1 12 4 1 3 4 7 5 2 . 4 7 4 7 3 Combat Bots Only 11 | . 2 3 . 1 5 6 2 1 . 11 4 1 1 . 1 9 4 1 3 4 5 5 2 . 4 5 4 6 3 Max Kills in Single Turn 7 | 1 1 2 . 1 4 7 1 1 . 4 4 1 1 . 1 6 4 1 2 3 6 5 1 . 2 3 4 5 1 Gunslinging . | . . . . . . . . . . . . . . . . . . . . . . . . . . . . . . Exploded 5 | . 1 2 . . 3 5 1 1 . 3 3 . 1 . 1 4 4 . 2 3 4 5 1 . 2 1 4 4 . Melee 1 | . . . . . . 1 . 1 . . 1 1 1 . . 1 . 1 . . 1 . . . . 1 1 1 1 Uniques/NPCs Destroyed 2 | . . . . . . . . . . . . . . . . . . . . . . . . . . . . . 2 MAIN.C Shell (-1/Command) MAIN.C (-1/Command) Combat | -11 -10 -10 -10 -9 -8 -7 -7 -7 -7 -6 -6 -6 -6 -6 -5 -5 -5 -5 -5 -4 -4 -4 -4 -4 -3 -3 -2 -1 -1 -------- Run | Yrd Mat Min Exi Min Mat Fac Low Low Zio Pro Fac Low Low Dat Pro Fac Upp Upp War Pro Fac Upp Upp Zhi Pro Res Res Acc Com Hostile Shots Fired 1093 | . 55 5 . 5 98 121 9 50 . 112 96 7 14 . . 107 . 4 3 2 116 2 12 . 1 52 7 102 113 Missed 386 | . 12 1 . 2 36 44 5 28 . 52 27 3 7 . . 32 . 3 1 . 40 2 2 . . 12 2 43 32 Intercepted 6 | . . . . . . . . . . . . . . . . . . . . . . . . . . . 1 . 5 Damage Taken 15055 | . 411 38 . 203 1189 1541 73 351 . 664 822 80 122 . . 1862 . 18 81 30 1574 . 69 . 24 829 69 1456 3549 Core 1854 | . 56 . . 50 141 224 8 41 . 131 77 . 18 . . 115 . . . . 75 . . . . 43 46 89 740 Absorbed by Shields 178 | . . . . . . 4 . . . . . . . . . . . . . . . . . . . 174 . . . Redirected to Shielding 448 | . 11 . . . . . . . . . . . . . . 40 . . . . 116 . 40 . . 119 . 109 13 Ignored by Resistances 27 | . . . . . 4 . . . . . . . . . . . . . . . . . . . . . . . 23 Regen/Repaired (Parts) 1759 | . . . . . . 264 . . . . 338 . . . . 414 . . 128 . 455 . . . . 160 . . . Core Remaining (%) 77 | 100 . . . 57 74 . . . . 42 . . . . 88 . . . . 88 . . . . 93 96 96 . 38 Volleys Fired 363 | 4 71 5 . 4 114 13 2 1 . 19 19 . 5 . 2 10 1 . 9 4 20 4 6 . 13 5 6 23 3 Largest 2 | 2 2 2 . 1 2 1 1 1 . 1 1 . 1 . 1 1 1 . 1 1 1 1 1 . 1 1 1 1 1 Hottest 136 | 60 80 136 . 100 136 48 39 39 . 48 48 . 90 . 50 98 80 . 80 80 98 80 80 . 90 113 113 113 113 Shots Fired 625 | 8 140 7 . 13 251 53 2 1 . 19 20 . 5 . 2 10 1 . 9 4 21 4 6 . 12 5 6 23 3 Gun 235 | 8 139 . . 9 39 40 . . . . . . . . . . . . . . . . . . . . . . . Cannon 268 | . . 4 . . 202 5 . . . 2 16 . 3 . . 2 . . . . 9 . . . 7 3 5 7 3 Launcher 109 | . 1 3 . . 10 8 2 1 . 9 3 . 2 . 2 8 1 . 9 4 12 4 6 . 5 2 1 16 . Special 13 | . . . . 4 . . . . . 8 1 . . . . . . . . . . . . . . . . . . Kinetic 50 | 4 18 . . . 5 5 . . . 2 16 . . . . . . . . . . . . . . . . . . Thermal 452 | 4 116 4 . 13 236 40 . . . . . . 3 . . 2 . . . . 9 . . . 7 3 5 7 3 Explosive 118 | . 1 3 . . 10 8 2 1 . 17 4 . 2 . 2 8 1 . 9 4 12 4 6 . 5 2 1 16 . Electromagnetic 5 | . 5 . . . . . . . . . . . . . . . . . . . . . . . . . . . . Robot Hit Streak 20 | 7 12 3 . 7 20 10 3 . . 7 1 . 2 . 1 3 . . 5 6 . . . . 7 . . 13 . Robot Miss Streak 11 | . 4 1 . 1 4 2 . 1 . 1 1 . 3 . 11 6 . . . . . . . . . . . . . Penetration Max . | . . . . . . . . . . . . . . . . . . . . . . . . . . . . . . Secondary Targets 1 | . 1 . . . . . . . . . . . . . . . . . . . . . . . . . . . . Max Gunslinging Chain 1 | . 1 . . . . . . . . . . . . . . . . . . . . . . . . . . . . Autonomous 86 | . . . . 9 36 41 . . . . . . . . . . . . . . . . . . . . . . . Shots Hit Robots 748 | 7 81 2 . 8 152 96 1 4 . 15 45 7 10 . 1 63 1 2 3 5 52 1 1 7 1 41 3 34 105 Core Hits 536 | 3 41 5 . 2 95 54 2 3 . 32 14 1 6 . 1 45 5 1 16 11 44 12 11 4 10 25 6 49 38 Critical Kills 1 | . . . . . 1 . . . . . . . . . . . . . . . . . . . . . . . . Critical Parts Destroyed 16 | . . . . . . . . . . . 5 . 2 . . 9 . . . . . . . . . . . . . Critical Strikes 58 | . . . . . 1 4 . . . 2 7 . 2 . . 11 . . . 2 4 . . . . 6 1 2 16 Meltdown 1 | . . . . . 1 . . . . . . . . . . . . . . . . . . . . . . . . Smash 16 | . . . . . . . . . . . 5 . 2 . . 9 . . . . . . . . . . . . . Sever 10 | . . . . . . 4 . . . 2 2 . . . . 2 . . . . . . . . . . . . . Impale 31 | . . . . . . . . . . . . . . . . . . . . 2 4 . . . . 6 1 2 16 Melee Attacks 898 | . . . . . 6 131 9 5 . 23 126 9 10 . 1 161 1 2 9 4 93 1 1 7 2 71 15 68 143 Impact 142 | . . . . . . 1 . . . 5 55 5 5 . . 71 . . . . . . . . . . . . . Slashing 382 | . . . . . 6 125 9 5 . 18 71 4 5 . 1 89 . . . . . . . 7 2 . . 8 32 Piercing 369 | . . . . . . . . . . . . . . . . 1 1 2 9 4 93 1 1 . . 71 15 60 111 Sneak Attacks 94 | . . . . . 2 23 . 1 . 3 10 . 4 . . 24 . . . 1 5 1 1 . . 4 1 5 9 Combat Hostiles 5 | . . . . . . . . . . . . . . . . 1 . . . . 1 . . . . 1 . 1 1 Follow-up Attacks 63 | . . . . . . . . . . 1 7 . 1 . . 5 . . . . 7 . . . . 1 . 5 36 Damage Inflicted 49214 | 71 992 268 . 227 4535 5628 222 264 . 2576 3237 561 752 . 67 5522 419 88 1416 997 4870 836 639 629 803 2273 552 3877 6893 Guns 3304 | 71 947 . . 227 986 1073 . . . . . . . . . . . . . . . . . . . . . . . Cannons 2401 | . . 41 . . 2295 . . . . . 31 . . . . 34 . . . . . . . . . . . . . Explosions 17979 | . 45 227 . . 1051 1775 222 75 . 2023 600 . 105 . 67 1619 314 . 1416 621 2582 775 533 . 803 464 304 2358 . Melee 25272 | . . . . . 195 2780 . 189 . 303 2606 561 647 . . 3869 105 88 . 376 2288 61 106 629 . 1809 248 1519 6893 Ramming 8 | . . . . . 8 . . . . . . . . . . . . . . . . . . . . . . . . Kinetic 233 | 29 99 . . . 74 . . . . . 31 . . . . . . . . . . . . . . . . . . Thermal 7133 | 42 813 41 . 227 3207 1736 . . . . 326 . . . . 34 . . . . 707 . . . . . . . . Explosive 16283 | . 45 227 . . 1051 1112 222 75 . 2023 274 . 105 . 67 1619 314 . 1416 621 1875 775 533 . 803 464 304 2358 . Electromagnetic 35 | . 35 . . . . . . . . . . . . . . . . . . . . . . . . . . . . Impact 4070 | . . . . . . . . . . 118 1371 433 317 . . 1831 . . . . . . . . . . . . . Slashing 9625 | . . . . . 195 2780 . 189 . 435 1235 128 330 . . 2038 . . . . . . . 629 . . . 169 1497 Piercing 11827 | . . . . . . . . . . . . . . . . . 105 88 . 376 2288 61 106 . . 1809 248 1350 5396 Highest Corruption 24 | . . . . . . 4 4 . 5 . 2 4 4 4 4 6 6 6 6 . 10 10 10 10 10 6 . 1 24 Average Corruption 5 | . . . . . . 3 3 . 4 . 1 2 4 4 4 3 6 6 6 . 6 10 10 10 10 4 . 1 9 Corruption Purged 11 | . . . . . . 7 4 . . . . . . . . . . . . . . . . . . . . . . Corruption Blocked . | . . . . . . . . . . . . . . . . . . . . . . . . . . . . . . Effects 350 | . . . . . . 30 9 . 3 . 16 12 17 2 7 36 12 15 . . 32 22 21 5 29 25 . . 57 Message Errors 77 | . . . . . . 4 3 . 1 . 3 3 6 1 3 10 1 5 . . 11 . 4 1 7 1 . . 13 Matter Fused 99 | . . . . . . 10 2 . 1 . 4 1 5 1 3 11 6 3 . . 6 4 3 1 8 13 . . 17 Heat Flow Errors 47 | . . . . . . 6 1 . . . 4 3 2 . . 2 1 2 . . 3 2 5 . 6 4 . . 6 Energy Discharges 51 | . . . . . . 6 2 . 1 . 1 3 1 . . 5 2 3 . . 5 5 4 1 2 4 . . 6 Parts Rejected 1 | . . . . . . . . . . . . . . . . . . . . . . . . . . . . . 1 Parts Fused 3 | . . . . . . . . . . . 1 . . . . . . 1 . . . . . 1 . . . . . Data Loss (minor) 34 | . . . . . . 3 . . . . 1 1 3 . . 4 1 1 . . 4 1 3 . 2 1 . . 9 Data Loss (major) 25 | . . . . . . 1 1 . . . 1 . . . . 4 1 . . . 1 6 2 . 3 1 . . 4 Misfires 2 | . . . . . . . . . . . 1 . . . . . . . . . 1 . . . . . . . . Alerts 10 | . . . . . . . . . . . . 1 . . 1 . . . . . 1 4 . 1 . 1 . . 1 Weapon Failures 1 | . . . . . . . . . . . . . . . . . . . . . . . . . 1 . . . . Overload Shots . | . . . . . . . . . . . . . . . . . . . . . . . . . . . . . . Overflow Damage 6739 | . . . . . 36 376 53 83 . 43 1168 368 436 . 3 1495 . . 23 260 366 31 93 82 36 250 108 304 1125 Projectiles 57 | . . . . . 36 . . . . . 21 . . . . . . . . . . . . . . . . . . Explosions 890 | . . . . . . 198 53 6 . 4 151 . . . 3 70 . . 23 17 187 31 . . 36 2 . 109 . Melee 5792 | . . . . . . 178 . 77 . 39 996 368 436 . . 1425 . . . 243 179 . 93 82 . 248 108 195 1125 Knockbacks 14 | . . . . . . . . . . . 5 . 1 . . 8 . . . . . . . . . . . . . Impact 13 | . . . . . . . . . . . 4 . 1 . . 8 . . . . . . . . . . . . . Kinetic . | . . . . . . . . . . . . . . . . . . . . . . . . . . . . . . Secondary 1 | . . . . . . . . . . . 1 . . . . . . . . . . . . . . . . . . Self-Inflicted Damage 394 | . . . . . 49 231 16 . . . . . . . . . . . . . 26 . . . . . . 72 . Shots 8 | . . . . . 1 4 1 . . . . . . . . . . . . . 1 . . . . . . 1 . Rammed . | . . . . . . . . . . . . . . . . . . . . . . . . . . . . . . Targets Rammed 1 | . . . . . 1 . . . . . . . . . . . . . . . . . . . . . . . . Kicked . | . . . . . . . . . . . . . . . . . . . . . . . . . . . . . . Crushed 1 | . . . . . 1 . . . . . . . . . . . . . . . . . . . . . . . . Highest Temperature 369 | 40 144 84 . 96 219 261 213 4 . 11 249 226 150 . . 251 264 234 212 238 240 298 294 8 221 353 198 120 369 Average Temperature 52 | 18 32 44 . 42 40 100 103 1 . 5 103 101 69 . . 47 112 108 65 90 50 43 36 4 69 97 28 15 113 Received Heat Transfer 2323 | . 84 9 . . 459 150 27 102 . 141 96 . 36 . . 189 . . 9 . 183 . . . . 23 . 126 689 Effects 15 | . . . . . . 1 . . . . . . . . . . 4 . . . . 2 5 . . . . . 3 Shutdowns 1 | . . . . . . . . . . . . . . . . . . . . . . . . . . . . . 1 Energy Bleed 5 | . . . . . . 1 . . . . . . . . . . 1 . . . . 1 2 . . . . . . Interference 9 | . . . . . . . . . . . . . . . . . 3 . . . . 1 3 . . . . . 2 Siege Activations . | . . . . . . . . . . . . . . . . . . . . . . . . . . . . . . Robots Corrupted 19 | . . . . . . . . . . . 8 2 . . . 9 . . . . . . . . . . . . . Combat Hostiles 2 | . . . . . . . . . . . . . . . . 2 . . . . . . . . . . . . . Parts Fried 41 | . . . . . . . . . . . 19 . 2 . . 20 . . . . . . . . . . . . . Impact Corruptions 83 | . . . . . . . . . . . 27 15 6 . . 35 . . . . . . . . . . . . . Robots Melted 3 | . . . . . 2 1 . . . . . . . . . . . . . . . . . . . . . . . Combat Hostiles 3 | . . . . . 2 1 . . . . . . . . . . . . . . . . . . . . . . . Parts Melted 16 | . . . . . 12 3 . . . . 1 . . . . . . . . . . . . . . . . . . Heat Transferred 10044 | 100 1825 74 . 296 5291 1708 . . . . 200 . . . . 50 . . . . 500 . . . . . . . . Parts Sabotaged . | . . . . . . . . . . . . . . . . . . . . . . . . . . . . . . Parts Stolen . | . . . . . . . . . . . . . . . . . . . . . . . . . . . . . . Parts Stripped . | . . . . . . . . . . . . . . . . . . . . . . . . . . . . . . Power Chain Reactions . | . . . . . . . . . . . . . . . . . . . . . . . . . . . . . . Alert | -11 -10 -10 -10 -9 -8 -7 -7 -7 -7 -6 -6 -6 -6 -6 -5 -5 -5 -5 -5 -4 -4 -4 -4 -4 -3 -3 -2 -1 -1 ------- Run | Yrd Mat Min Exi Min Mat Fac Low Low Zio Pro Fac Low Low Dat Pro Fac Upp Upp War Pro Fac Upp Upp Zhi Pro Res Res Acc Com Peak Influence 1002 | 10 306 205 . 21 913 855 . . . . 378 . . . . 937 . . . . 1002 . . . . 500 195 687 564 Initial 452 | . 6 97 . . . 408 . . . . 141 . . . . 452 . . . . 68 . . . . 300 . 23 328 Average 304 | 4 150 99 . 3 451 516 . . . . 103 . . . . 381 . . . . 306 . . . . 223 74 333 363 Maximum Alert Level 3 | . 1 1 . . 3 3 . . . . 1 . . . . 3 . . . . 3 . . . . 2 . 2 2 Low Security (%) 43 | 100 69 83 . 100 29 . . . . . 91 . . . . 15 . . . . 54 . . . . 46 100 29 19 Level 1 23 | . 30 16 . . 14 22 . . . . 8 . . . . 51 . . . . 14 . . . . 39 . 30 39 Level 2 23 | . . . . . 24 73 . . . . . . . . . 11 . . . . 12 . . . . 14 . 40 40 Level 3 9 | . . . . . 30 4 . . . . . . . . . 21 . . . . 18 . . . . . . . . Level 4 . | . . . . . . . . . . . . . . . . . . . . . . . . . . . . . . Level 5 . | . . . . . . . . . . . . . . . . . . . . . . . . . . . . . . High Security . | . . . . . . . . . . . . . . . . . . . . . . . . . . . . . . Max Security . | . . . . . . . . . . . . . . . . . . . . . . . . . . . . . . Squads Dispatched 89 | . 4 . . . 7 15 . 1 . 1 11 . . . . 17 . . . . 14 . . . . 2 2 6 9 Investigation 27 | . 2 . . . 2 4 . . . . 4 . . . . 6 . . . . 7 . . . . . 1 . 1 Extermination 25 | . . . . . . 5 . . . . 4 . . . . 4 . . . . 4 . . . . 2 . 1 5 Reinforcement 27 | . 2 . . . 4 3 . . . . 3 . . . . 4 . . . . 3 . . . . . 1 5 2 Assault 10 | . . . . . 1 3 . 1 . 1 . . . . . 3 . . . . . . . . . . . . 1 Garrison . | . . . . . . . . . . . . . . . . . . . . . . . . . . . . . . Intercept . | . . . . . . . . . . . . . . . . . . . . . . . . . . . . . . Searches Triggered 1 | . . . . . . . . . . . . . . . . . . . . . . . . . . 1 . . . Data Miner Redirects 4 | . . . . . . . . . . . . . . . . 2 . . . . 1 . . . . . . . 1 Construction Impeded 3 | . . . . . 1 . . . . . 1 . . . . . . . . . 1 . . . . . . . . Haulers Reinforced 6 | . . . . . . 1 . . . . . . . . . 1 . . . . 2 . . . . . 1 1 . Active Scanning Responses . | . . . . . . . . . . . . . . . . . . . . . . . . . . . . . . Cargo Convoy Interrupts 1 | . . . . . . . . . . . . . . . . 1 . . . . . . . . . . . . . Stealth | -11 -10 -10 -10 -9 -8 -7 -7 -7 -7 -6 -6 -6 -6 -6 -5 -5 -5 -5 -5 -4 -4 -4 -4 -4 -3 -3 -2 -1 -1 --------- Run | Yrd Mat Min Exi Min Mat Fac Low Low Zio Pro Fac Low Low Dat Pro Fac Upp Upp War Pro Fac Upp Upp Zhi Pro Res Res Acc Com Distress Signals 56 | . 2 . . . 7 3 . . . . 5 . . . . 4 . . . . 4 . . . . 1 10 1 19 Communications Jammed 99 | . . . . . . . . . . . . . . . . 17 . . . . 1 . . . . 77 . 1 3 Distress Signals 98 | . . . . . . . . . . . . . . . . 17 . . . . 1 . . . . 77 . . 3 Times Spotted 529 | . 34 5 . 8 66 57 10 12 . 18 32 1 12 . 3 73 . 1 15 7 39 4 3 . 8 27 11 46 37 Peak Tracking Total 13 | . 4 1 . 8 6 8 5 6 . 13 6 2 3 . 2 9 . 1 10 4 8 3 3 . 4 4 4 9 5 Tactical Retreats 78 | . 5 . . 1 7 9 7 9 . 2 6 1 5 . . 9 . . . . 7 . . . . 1 2 4 3 Traps | -11 -10 -10 -10 -9 -8 -7 -7 -7 -7 -6 -6 -6 -6 -6 -5 -5 -5 -5 -5 -4 -4 -4 -4 -4 -3 -3 -2 -1 -1 ------- Run | Yrd Mat Min Exi Min Mat Fac Low Low Zio Pro Fac Low Low Dat Pro Fac Upp Upp War Pro Fac Upp Upp Zhi Pro Res Res Acc Com Traps Triggered 20 | . 1 . . . 1 9 . . . . . . . . . 2 . . 1 . 3 . . . . 1 . 1 1 Indirectly . | . . . . . . . . . . . . . . . . . . . . . . . . . . . . . . Trap Hack Attempts 1 | . . . . . . 1 . . . . . . . . . . . . . . . . . . . . . . . Triggered . | . . . . . . . . . . . . . . . . . . . . . . . . . . . . . . Disarmed . | . . . . . . . . . . . . . . . . . . . . . . . . . . . . . . Reprogrammed 1 | . . . . . . 1 . . . . . . . . . . . . . . . . . . . . . . . Reused . | . . . . . . . . . . . . . . . . . . . . . . . . . . . . . . Traps Extracted 3 | . . . . . . . . . . . . . . . . . . . 3 . . . . . . . . . . Installed 2 | . . . . . . . . . . . . . 2 . . . . . . . . . . . . . . . . Triggered 14 | . . . . . . . . . . . . . 2 . . 4 . . 5 . . . 3 . . . . . . Most Traps Carried 5 | . . . . . . . . . . . . . 1 . . . . . 3 5 5 5 5 5 5 5 5 5 5 Machines | -11 -10 -10 -10 -9 -8 -7 -7 -7 -7 -6 -6 -6 -6 -6 -5 -5 -5 -5 -5 -4 -4 -4 -4 -4 -3 -3 -2 -1 -1 ---------- Run | Yrd Mat Min Exi Min Mat Fac Low Low Zio Pro Fac Low Low Dat Pro Fac Upp Upp War Pro Fac Upp Upp Zhi Pro Res Res Acc Com Machines Disabled 35 | . . . . . 2 13 . . . . 10 1 . . . . . . . . 8 . . . . 1 . . . Max in Single Turn 11 | . . . . . 1 11 . . . . 7 1 . . . . . . . . 7 . . . . . . . . Garrison Access 15 | . . . . . . 3 . . . . 3 . . . . 3 . . . . . . . . . 3 2 1 . Machines Repaired . | . . . . . . . . . . . . . . . . . . . . . . . . . . . . . . Machines Dismantled . | . . . . . . . . . . . . . . . . . . . . . . . . . . . . . . Machines Sabotaged . | . . . . . . . . . . . . . . . . . . . . . . . . . . . . . . Overloaded Fab Kills . | . . . . . . . . . . . . . . . . . . . . . . . . . . . . . . Hacking | -11 -10 -10 -10 -9 -8 -7 -7 -7 -7 -6 -6 -6 -6 -6 -5 -5 -5 -5 -5 -4 -4 -4 -4 -4 -3 -3 -2 -1 -1 --------- Run | Yrd Mat Min Exi Min Mat Fac Low Low Zio Pro Fac Low Low Dat Pro Fac Upp Upp War Pro Fac Upp Upp Zhi Pro Res Res Acc Com Machines Accessed 143 | . 8 . 3 . 10 27 . . 1 . 24 1 . 4 . 18 1 1 3 . 9 . 1 . . 17 2 5 8 Terminals 71 | . 6 . . . 7 11 . . . . 11 . . . . 8 . . . . 3 . 1 . . 11 1 4 8 Fabricators 16 | . . . . . . 4 . . . . 4 . . . . 5 . . . . 3 . . . . . . . . Repair Stations 13 | . . . . . . 4 . . . . 4 . . . . 2 . . . . 2 . . . . 1 . . . Recycling Units 13 | . 2 . . . 2 5 . . . . 1 . . . . 1 . . . . 1 . . . . 1 . . . Scanalyzers 3 | . . . . . 1 . . . . . 1 . . . . . . . . . . . . . . 1 . . . Garrison Access 13 | . . . . . . 3 . . . . 3 . . . . 2 . . . . . . . . . 3 1 1 . Total Hacks 485 | . 24 . 6 . 42 79 . . 3 . 77 1 . 27 . 66 1 1 9 . 43 . 2 . . 46 8 24 26 Successful 316 | . 8 . 6 . 15 50 . . 3 . 66 1 . 27 . 49 1 1 9 . 26 . 2 . . 28 2 9 13 Failed 169 | . 16 . . . 27 29 . . . . 11 . . . . 17 . . . . 17 . . . . 18 6 15 13 Catastrophic 31 | . 5 . . . 6 3 . . . . 1 . . . . 3 . . . . 5 . . . . 6 . 2 . Database Lockouts . | . . . . . . . . . . . . . . . . . . . . . . . . . . . . . . Manual 175 | . 12 . 1 . 24 29 . . . . 28 . . . . 20 . . 1 . 18 . . . . 19 . 10 13 Terminals 257 | . 20 . . . 28 35 . . . . 35 . . . . 31 . . . . 17 . 2 . . 34 6 23 26 Fabricators 61 | . . . . . . 16 . . . . 17 . . . . 16 . . . . 12 . . . . . . . . Repair Stations 51 | . . . . . . 11 . . . . 13 . . . . 14 . . . . 11 . . . . 2 . . . Recycling Units 36 | . 4 . . . 8 12 . . . . 3 . . . . 3 . . . . 3 . . . . 3 . . . Scanalyzers 15 | . . . . . 6 . . . . . 6 . . . . . . . . . . . . . . 3 . . . Garrison Access 17 | . . . . . . 5 . . . . 3 . . . . 2 . . . . . . . . . 4 2 1 . Terminal Hacks 150 | . 6 . 6 . 6 14 . . 3 . 22 1 . 27 . 14 1 1 9 . 6 . 2 . . 13 1 8 10 Record 28 | . . . 5 . . . . . . . 1 1 . 11 . . . . 8 . . . 2 . . . . . . Part Schematic 19 | . 1 . . . . 1 . . 3 . 3 . . 9 . . . . . . 1 . . . . 1 . . . Robot Schematic 5 | . 1 . . . . . . . . . . . . 4 . . . . . . . . . . . . . . . Robot Analysis 1 | . 1 . . . . . . . . . . . . . . . . . . . . . . . . . . . . Prototype ID Bank 5 | . . . . . 1 . . . . . 1 . . 3 . . . . . . . . . . . . . . . Open Door 4 | . . . . . . . . . . . . . . . . . 1 1 1 . . . . . . . . . 1 Level Access Points 1 | . . . . . . . . . . . . . . . . . . . . . . . . . . 1 . . . Branch Access Points 7 | . 1 . . . 1 1 . . . . 1 . . . . 1 . . . . 1 . . . . . 1 . . Emergency Access Points 6 | . 1 . . . 1 . . . . . 2 . . . . . . . . . . . . . . 1 . . 1 Machine Index 4 | . . . . . . . . . . . 1 . . . . 1 . . . . 1 . . . . . . . 1 Terminal Index 7 | . . . . . . 1 . . . . 1 . . . . 1 . . . . 1 . . . . 1 . 1 1 Fabricator Index 5 | . . . . . . 1 . . . . 1 . . . . 1 . . . . 1 . . . . 1 . . . Repair Station Index 3 | . . . . . . 1 . . . . . . . . . . . . . . 1 . . . . 1 . . . Alert Level 7 | . . . . . . 1 . . . . 2 . . . . 2 . . . . . . . . . 2 . . . Unreport Threat 12 | . . . . . 1 2 . . . . 1 . . . . 3 . . . . . . . . . 2 . 3 . Locate Traps 14 | . 1 . . . 2 2 . . . . 4 . . . . . . . . . . . . . . 2 . 2 1 Maintenance Status 1 | . . . . . . . . . . . . . . . . . . . . . . . . . . . . 1 . Security Status 1 | . . . . . . . . . . . . . . . . . . . . . . . . . . . . . 1 Patrol Status 1 | . . . . . . . . . . . 1 . . . . . . . . . . . . . . . . . . Transport Status 1 | . . . . . . . . . . . . . . . . . . . . . . . . . . . . . 1 Reinforcement Status 1 | . . . . . . . . . . . 1 . . . . . . . . . . . . . . . . . . Recall Investigation 2 | . . . . . . . . . . . . . . . . 2 . . . . . . . . . . . . . Recall Extermination 1 | . . . . . . . . . . . . . . . . 1 . . . . . . . . . . . . . Recall Reinforcements 5 | . . . . . . 2 . . . . 2 . . . . 1 . . . . . . . . . . . . . Recall Assault 1 | . . . . . . 1 . . . . . . . . . . . . . . . . . . . . . . . Hauler Manifests 1 | . . . . . . 1 . . . . . . . . . . . . . . . . . . . . . . . Registered Prototypes 1 | . . . . . . . . . . . . . . . . . . . . . . . . . . 1 . . . Zone Layout 3 | . . . . . . . . . . . . . . . . 1 . . . . . . . . . . . 1 1 Derelict Proto ID Bank 1 | . . . 1 . . . . . . . . . . . . . . . . . . . . . . . . . . Disengage Seal 2 | . . . . . . . . . . . . . . . . . . . . . . . . . . . . . 2 Fabricator Hacks 38 | . . . . . . 8 . . . . 11 . . . . 11 . . . . 8 . . . . . . . . Network Status 2 | . . . . . . 1 . . . . 1 . . . . . . . . . . . . . . . . . . Load Schematic 21 | . . . . . . 5 . . . . 6 . . . . 6 . . . . 4 . . . . . . . . Build 15 | . . . . . . 2 . . . . 4 . . . . 5 . . . . 4 . . . . . . . . Repair Station Hacks 43 | . . . . . . 9 . . . . 13 . . . . 13 . . . . 6 . . . . 2 . . . Scan Component 23 | . . . . . . 5 . . . . 7 . . . . 7 . . . . 3 . . . . 1 . . . Repair 20 | . . . . . . 4 . . . . 6 . . . . 6 . . . . 3 . . . . 1 . . . Recycling Unit Hacks 9 | . 1 . . . 2 3 . . . . 1 . . . . 1 . . . . . . . . . 1 . . . Retrieve Components 9 | . 1 . . . 2 3 . . . . 1 . . . . 1 . . . . . . . . . 1 . . . Scanalyzer 13 | . . . . . 4 . . . . . 6 . . . . . . . . . . . . . . 3 . . . Insert Component 7 | . . . . . 2 . . . . . 3 . . . . . . . . . . . . . . 2 . . . Analyze 6 | . . . . . 2 . . . . . 3 . . . . . . . . . . . . . . 1 . . . Garrison Access Hacks 13 | . . . . . . 3 . . . . 3 . . . . 2 . . . . . . . . . 3 1 1 . Seal Access 13 | . . . . . . 3 . . . . 3 . . . . 2 . . . . . . . . . 3 1 1 . Unauthorized Hacks 50 | . 1 . . . 3 13 . . . . 10 . . . . 8 . . . . 6 . . . . 6 . . 3 Terminals 22 | . 1 . . . . 6 . . . . 4 . . . . 2 . . . . 2 . . . . 4 . . 3 Track 1 | . . . . . . . . . . . . . . . . . . . . . . . . . . . . . 1 Assimilate 8 | . . . . . . 4 . . . . 2 . . . . . . . . . . . . . . 2 . . . Botnet 9 | . 1 . . . . 1 . . . . 1 . . . . 1 . . . . 1 . . . . 2 . . 2 Operators 4 | . . . . . . 1 . . . . 1 . . . . 1 . . . . 1 . . . . . . . . Fabricators 16 | . . . . . . 4 . . . . 5 . . . . 5 . . . . 2 . . . . . . . . Prioritize 10 | . . . . . . 1 . . . . 3 . . . . 4 . . . . 2 . . . . . . . . Recompile 6 | . . . . . . 3 . . . . 2 . . . . 1 . . . . . . . . . . . . . Repair Stations 1 | . . . . . . . . . . . . . . . . . . . . . 1 . . . . . . . . Patch 1 | . . . . . . . . . . . . . . . . . . . . . 1 . . . . . . . . Recycling Units 11 | . . . . . 3 3 . . . . 1 . . . . 1 . . . . 1 . . . . 2 . . . Reject 4 | . . . . . 2 1 . . . . . . . . . . . . . . . . . . . 1 . . . Mask 7 | . . . . . 1 2 . . . . 1 . . . . 1 . . . . 1 . . . . 1 . . . Scanalyzers . | . . . . . . . . . . . . . . . . . . . . . . . . . . . . . . Garrison Access . | . . . . . . . . . . . . . . . . . . . . . . . . . . . . . . Data Cores Recovered . | . . . . . . . . . . . . . . . . . . . . . . . . . . . . . . Used . | . . . . . . . . . . . . . . . . . . . . . . . . . . . . . . Hacking Detections 103 | . 8 . . . 10 22 . . . . 17 . . . . 13 . . . . 9 . . . . 12 2 4 6 Full Trace Events 18 | . 2 . . . 1 1 . . . . 2 . . . . 5 . . . . 6 . . . . . 1 . . Feedback Events . | . . . . . . . . . . . . . . . . . . . . . . . . . . . . . . Feedback Blocked . | . . . . . . . . . . . . . . . . . . . . . . . . . . . . . . Robot Schematics Acquired 5 | . 1 . . . . . . . . . . . . 4 . . . . . . . . . . . . . . . Robots Built . | . . . . . . . . . . . . . . . . . . . . . . . . . . . . . . Authchips . | . . . . . . . . . . . . . . . . . . . . . . . . . . . . . . Time . | . . . . . . . . . . . . . . . . . . . . . . . . . . . . . . Total Robot Build Rating . | . . . . . . . . . . . . . . . . . . . . . . . . . . . . . . Part Schematics Acquired 25 | . 1 . . . 2 1 . . 3 . 6 . . 9 . . . . . . 1 . . . . 2 . . . Parts Built 25 | . . . . . . 4 . . . . 8 . . . . 6 . . . . 7 . . . . . . . . Authchips 6 | . . . . . . 2 . . . . 2 . . . . 1 . . . . 1 . . . . . . . . Time 783 | . . . . . . 73 . . . . 159 . . . . 343 . . . . 208 . . . . . . . . Total Part Build Rating 128 | . . . . . . 18 . . . . 38 . . . . 32 . . . . 40 . . . . . . . . Parts Repaired 20 | . . . . . . 4 . . . . 6 . . . . 6 . . . . 3 . . . . 1 . . . Time 741 | . . . . . . 114 . . . . 265 . . . . 274 . . . . 66 . . . . 22 . . . Parts Recycled . | . . . . . . . . . . . . . . . . . . . . . . . . . . . . . . Recycled Matter . | . . . . . . . . . . . . . . . . . . . . . . . . . . . . . . Retrieved Matter . | . . . . . . . . . . . . . . . . . . . . . . . . . . . . . . Retrieved Components 53 | . 1 . . . 18 13 . . . . 10 . . . . 10 . . . . . . . . . 1 . . . Parts Scanalyzed 6 | . . . . . 2 . . . . . 3 . . . . . . . . . . . . . . 1 . . . Part Schematics Acquired 6 | . . . . . 2 . . . . . 3 . . . . . . . . . . . . . . 1 . . . Parts Damaged 1 | . . . . . . . . . . . 1 . . . . . . . . . . . . . . . . . . Bothacking | -11 -10 -10 -10 -9 -8 -7 -7 -7 -7 -6 -6 -6 -6 -6 -5 -5 -5 -5 -5 -4 -4 -4 -4 -4 -3 -3 -2 -1 -1 ------------ Run | Yrd Mat Min Exi Min Mat Fac Low Low Zio Pro Fac Low Low Dat Pro Fac Upp Upp War Pro Fac Upp Upp Zhi Pro Res Res Acc Com Used RIF Installer . | . . . . . . . . . . . . . . . . . . . . . . . . . . . . . . Robots Hacked 5 | . . . . . . 5 . . . . . . . . . . . . . . . . . . . . . . . Non-combat 5 | . . . . . . 5 . . . . . . . . . . . . . . . . . . . . . . . Combat . | . . . . . . . . . . . . . . . . . . . . . . . . . . . . . . Robot Hacks Applied 5 | . . . . . . 5 . . . . . . . . . . . . . . . . . . . . . . . parse_system 1 | . . . . . . 1 . . . . . . . . . . . . . . . . . . . . . . . find_chute 4 | . . . . . . 4 . . . . . . . . . . . . . . . . . . . . . . . Relay Couplers Released 7 | . . . . . . . . . . . 1 . . . . 3 . . . . . . . . . . 3 . . Machine Destruction 7 | . . . . . . . . . . . 1 . . . . 3 . . . . . . . . . . 3 . . Fabnet Peak Effective % . | . . . . . . . . . . . . . . . . . . . . . . . . . . . . . . Robots Rewired . | . . . . . . . . . . . . . . . . . . . . . . . . . . . . . . Allies Hacked 2 | . . . . . . . . . . . . . . . . 1 . . . . . . . . . 1 . . . Hacks Repelled 1 | . . . . . . . . . . . . . . . . . . . 1 . . . . . . . . . . Allies | -11 -10 -10 -10 -9 -8 -7 -7 -7 -7 -6 -6 -6 -6 -6 -5 -5 -5 -5 -5 -4 -4 -4 -4 -4 -3 -3 -2 -1 -1 -------- Run | Yrd Mat Min Exi Min Mat Fac Low Low Zio Pro Fac Low Low Dat Pro Fac Upp Upp War Pro Fac Upp Upp Zhi Pro Res Res Acc Com Total Allies 18 | . . 3 . 2 . 3 . . . . 2 . . . . 3 . . . . 3 . . . . 2 . . . Largest Group 3 | . . 3 1 2 . 1 . . . . 1 . . . . 3 . . . . 3 . . . . 1 . . . Highest-Rated Group 138 | . . 40 16 51 . 26 . . . . 26 . . . . 93 . . . . 138 . . . . 45 . . . Highest-Rated Ally 46 | . . 16 16 31 . 26 . . . . 26 . . . . 31 . . . . 46 . . . . 45 . . . Total Orders 79 | . . . . . . . . . . . . . . . . 15 . . . 3 15 8 5 . 5 14 5 9 . STAY 1 | . . . . . . . . . . . . . . . . . . . . . . . . . . 1 . . . FOLLOW 1 | . . . . . . . . . . . . . . . . 1 . . . . . . . . . . . . . EXPLORE 6 | . . . . . . . . . . . . . . . . . . . . . . 1 . . . 1 4 . . RETURN 71 | . . . . . . . . . . . . . . . . 14 . . . 3 15 7 5 . 5 12 1 9 . Ally Attacks 423 | . . 13 . 15 . . . . . . . . . . . 90 . . . 28 98 24 14 . 26 54 . 61 . Total Damage 6914 | . . 144 . 110 . . . . . . . . . . . 1622 . . . 388 1837 436 182 . 218 988 . 989 . Kills 45 | . . 2 . 1 . . . . . . . . . . . 12 . . . 3 11 3 2 . 2 5 . 4 . Allies Corrupted . | . . . . . . . . . . . . . . . . . . . . . . . . . . . . . . Allies Melted 1 | . . . . . . . . . . . . . . . . . . . . . . . . . . . 1 . . Intel | -11 -10 -10 -10 -9 -8 -7 -7 -7 -7 -6 -6 -6 -6 -6 -5 -5 -5 -5 -5 -4 -4 -4 -4 -4 -3 -3 -2 -1 -1 ------- Run | Yrd Mat Min Exi Min Mat Fac Low Low Zio Pro Fac Low Low Dat Pro Fac Upp Upp War Pro Fac Upp Upp Zhi Pro Res Res Acc Com Robot Analysis Total 1 | . 1 . . . . . . . . . . . . . . . . . . . . . . . . . . . . Derelict Logs Recovered 20 | . . . . 1 . . 1 2 1 2 . 2 2 . 1 . 2 1 . 1 . 2 2 . . . . . . Drone Launches 116 | . . . . . . . . . . . . . . . . 20 . . . 5 24 11 8 . 10 18 8 12 . Drone Recoveries 112 | . . . . . . . . . . . . . . . . 20 . . . 5 23 11 8 . 10 18 6 11 . Exploration | -11 -10 -10 -10 -9 -8 -7 -7 -7 -7 -6 -6 -6 -6 -6 -5 -5 -5 -5 -5 -4 -4 -4 -4 -4 -3 -3 -2 -1 -1 ------------- Run | Yrd Mat Min Exi Min Mat Fac Low Low Zio Pro Fac Low Low Dat Pro Fac Upp Upp War Pro Fac Upp Upp Zhi Pro Res Res Acc Com Turns Passed 37088 | 138 1752 509 666 1367 4028 4091 1236 378 738 1027 3547 798 971 53 363 3645 578 565 365 615 1943 674 613 115 696 1612 939 978 2088 Spaces Moved 35921 | 73 865 285 416 630 1555 4639 945 536 1093 1163 3385 969 1187 80 421 3583 843 833 451 884 2001 975 873 141 749 1815 1475 1132 1924 Core 6 | 5 . . . . . . . . . . . . . . . . . . . . . . . . . . . . 1 Treads 3752 | 68 865 285 416 630 1488 . . . . . . . . . . . . . . . . . . . . . . . . Legs . | . . . . . . . . . . . . . . . . . . . . . . . . . . . . . . Wheels . | . . . . . . . . . . . . . . . . . . . . . . . . . . . . . . Hover 32163 | . . . . . 67 4639 945 536 1093 1163 3385 969 1187 80 421 3583 843 833 451 884 2001 975 873 141 749 1815 1475 1132 1923 Flight . | . . . . . . . . . . . . . . . . . . . . . . . . . . . . . . Fastest Speed 38 | 50 160 160 160 160 58 53 59 59 65 65 63 65 65 65 65 60 65 65 59 59 56 56 56 56 56 52 39 39 38 Average Speed 73 | 152 160 160 160 160 187 65 59 62 65 65 65 65 65 65 65 63 65 65 62 59 63 56 56 56 56 64 51 46 62 Slowest Speed 1300 | 160 160 160 160 160 240 132 124 132 132 66 132 65 65 65 65 138 65 65 65 59 123 56 56 56 56 132 129 115 1300 Overloaded Moves . | . . . . . . . . . . . . . . . . . . . . . . . . . . . . . . Propulsion Burnouts . | . . . . . . . . . . . . . . . . . . . . . . . . . . . . . . Robots Hopped . | . . . . . . . . . . . . . . . . . . . . . . . . . . . . . . Cave-ins Triggered . | . . . . . . . . . . . . . . . . . . . . . . . . . . . . . . Teleports 1 | . . . . . . . . . . . . . . . . . . . . . . . . . . . . 1 . Exploration Rate (%) 68 | 5 96 54 72 90 97 85 71 58 86 95 57 83 77 69 58 68 82 91 53 81 24 92 89 56 80 33 85 28 45 Regions Visited 29 Branch Regions 20 Pre-discovered Areas 9 | . . . 1 . . . . 1 2 . . 1 1 1 . . 1 1 . . . . . . . . . . . Known Exits Taken 22 | . 1 . . . . 1 1 1 1 1 1 1 1 1 1 1 1 1 1 1 1 1 1 1 1 1 . . . Unknown Exits Taken 7 | 1 . 1 1 1 1 . . . . . . . . . . . . . . . . . . . . . 1 1 . Scrap Searched 30 | . . 1 . 2 . . 2 . 2 1 . 2 3 . . . 3 1 . 4 . 4 4 . 1 . . . . Spaces Dug 445 | . 8 12 . 4 12 54 27 1 . 61 81 . 2 . 1 71 . . 4 . 24 . . . 3 16 12 37 15 Terrain Destroyed 1445 | . 8 14 . 5 106 133 43 17 . 161 126 . 71 . 60 108 14 . 56 33 118 36 47 . 55 38 24 154 18 Melee 297 | . . . . . 2 45 9 1 . 14 58 . . . 1 71 . . 4 . 23 . . . 1 16 11 26 15 Projectile 62 | . . . . 5 4 7 . . . 3 5 . 3 . . 1 . . . . 9 . . . 7 3 5 7 3 AOE 1086 | . 8 14 . . 100 81 34 16 . 144 63 . 68 . 59 36 14 . 52 33 86 36 47 . 47 19 8 121 . Terrain Rammed . | . . . . . . . . . . . . . . . . . . . . . . . . . . . . . . Walls Destroyed . | . . . . . . . . . . . . . . . . . . . . . . . . . . . . . . Machines Disabled . | . . . . . . . . . . . . . . . . . . . . . . . . . . . . . . Actions | -11 -10 -10 -10 -9 -8 -7 -7 -7 -7 -6 -6 -6 -6 -6 -5 -5 -5 -5 -5 -4 -4 -4 -4 -4 -3 -3 -2 -1 -1 --------- Run | Yrd Mat Min Exi Min Mat Fac Low Low Zio Pro Fac Low Low Dat Pro Fac Upp Upp War Pro Fac Upp Upp Zhi Pro Res Res Acc Com Total 44759 | 89 1100 330 418 985 2458 5457 1599 565 1122 1389 4510 1117 1356 80 501 4647 867 851 506 965 2564 1092 987 166 1005 2214 1628 1489 2702 Wait 6414 | . 102 39 . 323 627 511 629 10 . 171 896 133 131 . 63 772 18 13 22 45 367 93 105 . 234 222 57 241 590 Move 35892 | 72 864 284 415 629 1554 4638 944 535 1092 1162 3384 968 1186 79 420 3583 842 832 450 883 2000 974 872 140 748 1814 1474 1131 1923 Hop . | . . . . . . . . . . . . . . . . . . . . . . . . . . . . . . Pick Up 227 | 6 21 . 1 10 29 35 . . 8 1 21 1 4 . 1 21 . . . 3 8 1 1 2 1 22 3 5 22 Fast Attach 178 | 7 7 . . 1 15 9 2 2 7 . 18 . . . 5 21 . . 5 5 2 4 1 8 . 12 26 5 16 Attach 167 | . . . . 4 13 29 . 4 2 3 8 . . . . 20 . . . 4 21 1 . . 2 15 2 13 26 Detach 75 | . 1 . . 2 3 10 . 1 . . 2 . . . . 15 . . . 5 16 . . 1 . 9 3 4 3 Swap 315 | . 13 2 . 2 36 22 11 6 2 14 32 6 15 1 3 35 5 4 6 5 31 8 . . 4 18 11 8 15 Drop 308 | . 21 . 2 10 60 20 2 1 11 1 20 1 5 . 6 31 . . 6 7 7 6 1 8 1 29 31 4 17 Fire 363 | 4 71 5 . 4 114 13 2 1 . 19 19 . 5 . 2 10 1 . 9 4 20 4 6 . 13 5 6 23 3 Melee 768 | . . . . . 6 131 9 5 . 18 110 8 8 . 1 139 1 2 8 4 82 1 1 7 2 68 15 55 87 Ram . | . . . . . . . . . . . . . . . . . . . . . . . . . . . . . . Kick . | . . . . . . . . . . . . . . . . . . . . . . . . . . . . . . Crush 1 | . . . . . 1 . . . . . . . . . . . . . . . . . . . . . . . . Escape Stasis 48 | . . . . . . 38 . . . . . . . . . . . . . . 10 . . . . . . . . Rewire . | . . . . . . . . . . . . . . . . . . . . . . . . . . . . . . Trap 3 | . . . . . . 1 . . . . . . 2 . . . . . . . . . . . . . . . . Miscellaneous . | . . . . . . . . . . . . . . . . . . . . . . . . . . . . . . Route ------- -11/Scrapyard -10/Materials (discovered 3 exits: [*Mat x2] / *Min) -10/Mines (discovered 3 exits: [*Mat x2] / *Exi) -10/Exiles (discovered 2 exits: [*Min x2]) -9/Mines (discovered 2 exits: *Mat x2) -8/Materials (discovered 3 exits: *Fac x3) -7/Factory (discovered 7 exits: *Fac x3 / *Sto x2 / *Low x2) -7/Lower Caves -7/Lower Caves -7/Zion -6/Proximity Caves -6/Factory (discovered 4 exits: *Fac x2 / *Low x2) -6/Lower Caves -6/Lower Caves -6/Data Miner -5/Proximity Caves -5/Factory (discovered 2 exits: *Upp x2) -5/Upper Caves (discovered 2 exits: *Upp / *War) -5/Upper Caves (discovered 2 exits: *Fac / *War) -5/Warlord -4/Proximity Caves -4/Factory (discovered 6 exits: *Res / *Upp x2 / *Ext x2 / Arm) -4/Upper Caves -4/Upper Caves (discovered 2 exits: *Res / *Zhi) -4/Zhirov -3/Proximity Caves -3/Research (discovered 5 exits: *Res x3 / *Qua x2) -2/Research (discovered 3 exits: *Acc / *Tes x2) -1/Access -1/Command (discovered 2 exits: [*Sur x2]) 0b11 Command History --------- Turn | Location | Event 4 | -11/Scrapyard | Discovered new exit (range 14) 139 | -11/Scrapyard | Entered Materials 318 | -10/Materials | Build established: Mutant 639 | -10/Materials | Derelicts attacked the area 695 | -10/Materials | Discovered new exit (range 7) 977 | -10/Materials | Discovered new exit (range 4) 1245 | -10/Materials | Discovered new exit (range 6) 1368 | -10/Materials | Identified exit to Mines 1891 | -10/Materials | Entered Mines 1954 | -10/Mines | Assisted by bots powering up and referring to "LRC-V3" 2085 | -10/Mines | Discovered new exit (range 11) 2224 | -10/Mines | Discovered new exit (range 15) 2392 | -10/Mines | Deemed a non-threat by the Exiles lab entrance 2392 | -10/Mines | Discovered new exit (range 5) 2400 | -10/Mines | Entered Exiles 2400 | -10/Exiles | Accompanied by 1 ally 2428 | -10/Exiles | Discovered new exit (range 15) 2455 | -10/Exiles | Met 8R-AWN 2482 | -10/Exiles | Met EX-HEX 2581 | -10/Exiles | Met EX-DEC 2640 | -10/Exiles | Learned location of Zion (-7) 2716 | -10/Exiles | Discovered new exit (range 14) 2807 | -10/Exiles | Met EX-BIN 2836 | -10/Exiles | Aligned with FarCom system 2837 | -10/Exiles | Given EX-Vault access code 2893 | -10/Exiles | Opened EX-Vault 2915 | -10/Exiles | Found AWS/Thermal 2950 | -10/Exiles | Warned to stay clear of 0b10 Research branches 2960 | -10/Exiles | Exiles lab attacked by MAIN.C 3066 | -10/Exiles | Left Exiles lab with AWS/Thermal 3066 | -10/Exiles | Entered Mines 3066 | -9/Mines | Accompanied by 1 ally 3142 | -9/Mines | Assembled infested the area 3683 | -9/Mines | Received a Rocket Launcher from a helpful Derelict 3948 | -9/Mines | Learned Materials emergency access door positions 3960 | -9/Mines | Found a hidden stash of uninstalled traps 4013 | -9/Mines | Discovered new exit (range 7) 4395 | -9/Mines | Discovered new exit (range 7) 4433 | -9/Mines | Entered Materials 4433 | -8/Materials | Evolved 4 slots: Propulsion x1, Utility x3 5408 | -8/Materials | Discovered new exit (range 9) 5975 | -8/Materials | Build established: Scavenger-Mutant 6580 | -8/Materials | Discovered new exit (range 3) 6813 | -8/Materials | Build established: Mutant 7424 | -8/Materials | Discovered new exit (range 15) 8033 | -8/Materials | First assault squad dispatched 8461 | -8/Materials | Entered Factory 8461 | -7/Factory | Evolved 2 slots: Propulsion x1, Utility x1 8618 | -7/Factory | Discovered new exit (range 10) 8659 | -7/Factory | Identified exit to Storage 8659 | -7/Factory | Identified exit to Lower Caves 8682 | -7/Factory | Build established: Hacker-Mutant 8808 | -7/Factory | Discovered new exit (range 12) 8913 | -7/Factory | Discovered new exit (range 5) 9557 | -7/Factory | Repaired Airjet 9572 | -7/Factory | Repaired Imp. Medium Armor Plating 9661 | -7/Factory | First assault squad dispatched 10729 | -7/Factory | AWS/Thermal suddenly broke down 11003 | -7/Factory | Fabricated Cmb. Airjet (x2) 11491 | -7/Factory | Fabricated Powered Armor? 11637 | -7/Factory | Repaired Gravmag System 12195 | -7/Factory | Repaired Powered Armor 12552 | -7/Factory | Entered Lower Caves 12576 | -7/Lower Caves | Learned Factory trap positions 12843 | -7/Lower Caves | Build established: Scavenger-Mutant 12857 | -7/Lower Caves | Encountered a Warlord checkpoint 13750 | -7/Lower Caves | Discovered new exit (range 6) 13784 | -7/Lower Caves | Identified exit to Lower Caves 13788 | -7/Lower Caves | Entered another Lower Caves area 13799 | -7/Lower Caves | Spotted B-75 Beast 13832 | -7/Lower Caves | Attracted the attention of an 0b10 outpost 13837 | -7/Lower Caves | Learned Factory stockpile data 13863 | -7/Lower Caves | Attracted the attention of an 0b10 checkpoint 14048 | -7/Lower Caves | Discovered new exit (range 15) 14058 | -7/Lower Caves | Identified exit to Zion 14155 | -7/Lower Caves | Found Alien Artifact 14155 | -7/Lower Caves | Identified Core Expander 14155 | -7/Lower Caves | Installed Core Expander, added new Propulsion slot 14166 | -7/Lower Caves | Entered Zion 14233 | -7/Zion | Discovered new exit (range 10) 14254 | -7/Zion | Build established: Hacker-Mutant 14271 | -7/Zion | Learned location of Data Miner (-6) 14348 | -7/Zion | Found Prototype Special Weapon 14350 | -7/Zion | Found Prototype Special Weapon 14351 | -7/Zion | Found Prototype Special Weapon 14363 | -7/Zion | Identified RU-N14's Throwing Claymores (x3) 14373 | -7/Zion | Found RU-N14's Throwing Claymores 14413 | -7/Zion | Learned Factory emergency access door positions 14478 | -7/Zion | Learned location of Recycling (-7) 14514 | -7/Zion | Received a hallucinogenic algorithm 14562 | -7/Zion | Rebuked by Imprinter 14768 | -7/Zion | Found Prototype Processor 14768 | -7/Zion | Identified Exp. Target Analyzer 14770 | -7/Zion | Found Prototype Processor 14770 | -7/Zion | Identified Exp. Melee Analysis Suite 14773 | -7/Zion | Found Prototype Processor 14773 | -7/Zion | Identified Spectral Analyzer 14792 | -7/Zion | Found Exp. Melee Analysis Suite 14882 | -7/Zion | System corruption cleaned by Quarantine Array 14901 | -7/Zion | Identified exit to Proximity Caves 14904 | -7/Zion | Entered Proximity Caves 14968 | -6/Proximity Caves | Learned 4 Factory zone layouts 15016 | -6/Proximity Caves | Learned Factory emergency access door positions 15153 | -6/Proximity Caves | Spotted B-75 Beast 15798 | -6/Proximity Caves | Attracted the attention of an 0b10 outpost 15804 | -6/Proximity Caves | Attracted the attention of an 0b10 checkpoint 15811 | -6/Proximity Caves | Core integrity fell below 50% 15891 | -6/Proximity Caves | Destroyed 11 combat bots 15894 | -6/Proximity Caves | Discovered new exit (range 5) 15896 | -6/Proximity Caves | Identified exit to Factory 15931 | -6/Proximity Caves | Entered Factory 15931 | -6/Factory | Evolved 2 slots: Utility x2 15933 | -6/Factory | Loaded intel: 90 trap records 16051 | -6/Factory | Repaired Cmb. Airjet 16317 | -6/Factory | Fabricated Cmb. Airjet? 16353 | -6/Factory | Build established: Hacker-Scout 16637 | -6/Factory | Found Prototype Launcher 16637 | -6/Factory | Identified Scatter Rocket Array 16660 | -6/Factory | Discovered new exit (range 8) 16809 | -6/Factory | Build established: Hacker-Mutant 16855 | -6/Factory | Identified exit to Lower Caves 17270 | -6/Factory | Fabricated Weapon Mount (x2) 17712 | -6/Factory | Found Prototype Processor 17712 | -6/Factory | Identified Exp. Targeting Computer 18146 | -6/Factory | Repaired Cmb. Airjet 18173 | -6/Factory | Repaired Cmb. Airjet 18438 | -6/Factory | Repaired Cmb. Airjet 18590 | -6/Factory | Discovered new exit (range 10) 18673 | -6/Factory | Discovered new exit (range 7) 18815 | -6/Factory | Fabricated Cmb. Airjet? 18925 | -6/Factory | Repaired Falx 19050 | -6/Factory | Repaired Broken Exp. Melee Analysis Suite 19420 | -6/Factory | Fabricated Powered Armor (x2) 19478 | -6/Factory | Entered Lower Caves 19549 | -6/Lower Caves | Learned Factory non-interactive machine intel 19764 | -6/Lower Caves | Murdered 3 allies 19803 | -6/Lower Caves | Discovered new exit (range 8) 19813 | -6/Lower Caves | Acquired the password to a Derelict Tinkerer's latest research 20157 | -6/Lower Caves | Caught by Unaware searching for contraband prototypes 20274 | -6/Lower Caves | Identified exit to Lower Caves 20276 | -6/Lower Caves | Entered another Lower Caves area 20670 | -6/Lower Caves | Learned Factory machine intel 21154 | -6/Lower Caves | Discovered new exit (range 12) 21247 | -6/Lower Caves | Identified exit to Data Miner 21247 | -6/Lower Caves | Entered Data Miner 21247 | -6/Data Miner | Discovered new exit (range 6) 21260 | -6/Data Miner | Met Data Miner 21272 | -6/Data Miner | Learned location of Section 7 (-2) 21272 | -6/Data Miner | Acquired the access code to Warlord's prototype stash 21283 | -6/Data Miner | Received God Mode back door access code from Data Miner 21298 | -6/Data Miner | Identified exit to Proximity Caves 21300 | -6/Data Miner | Entered Proximity Caves 21396 | -5/Proximity Caves | Spotter reported a threat 21496 | -5/Proximity Caves | Spotter reported a threat 21529 | -5/Proximity Caves | Learned location of 1 exit from Factory 21549 | -5/Proximity Caves | Spotter reported a threat 21635 | -5/Proximity Caves | Discovered new exit (range 4) 21662 | -5/Proximity Caves | Identified exit to Factory 21663 | -5/Proximity Caves | Entered Factory 21663 | -5/Factory | Evolved 2 slots: Power x1, Propulsion x1 21664 | -5/Factory | Identified exit to Upper Caves 21666 | -5/Factory | Loaded intel: 275 machine locations 21667 | -5/Factory | Loaded intel: 223 non-interactive machine locations 21817 | -5/Factory | Discovered exit to Upper Caves (range 3) 21972 | -5/Factory | Build established: Hacker-Scout 22017 | -5/Factory | Fabricated Combat Drone Bay? 22098 | -5/Factory | Fabricated Exp. Utility Shielding (x1) 22410 | -5/Factory | Build established: Hacker-Mutant 22803 | -5/Factory | Cargo convoy interrupted 22861 | -5/Factory | Fabricated Mni. Smartbomb Launcher? 22887 | -5/Factory | Repaired Cmb. Airjet 22915 | -5/Factory | Repaired Cmb. Airjet 23648 | -5/Factory | Allied Derelicts emerged from ambush trap array 23687 | -5/Factory | Fabricated Cmb. Airjet (x2) 23978 | -5/Factory | Incoming investigation squad redirected 24037 | -5/Factory | Fabricated Exp. Utility Shielding (x1) 24351 | -5/Factory | Destroyed 9 combat bots 24415 | -5/Factory | Incoming assault squad redirected 24685 | -5/Factory | Repaired Powered Armor 24767 | -5/Factory | Repaired Exp. Utility Shielding 24819 | -5/Factory | Repaired Cmb. Airjet 24871 | -5/Factory | Repaired Cmb. Airjet 24963 | -5/Factory | First assault squad dispatched 25308 | -5/Factory | Entered Upper Caves 25348 | -5/Upper Caves | Build established: Machinist-Mutant 25498 | -5/Upper Caves | Learned Factory stockpile data 25667 | -5/Upper Caves | Discovered new exit (range 12) 25768 | -5/Upper Caves | A Derelict revealed a hidden shortcut to "reach the base" 25882 | -5/Upper Caves | Identified exit to Upper Caves 25886 | -5/Upper Caves | Entered another Upper Caves area 25928 | -5/Upper Caves | Discovered new exit (range 10) 26052 | -5/Upper Caves | Identified exit to Factory 26366 | -5/Upper Caves | Discovered new exit (range 15) 26451 | -5/Upper Caves | Identified exit to Warlord 26451 | -5/Upper Caves | Entered Warlord 26474 | -5/Warlord | System corruption cleaned by Quarantine Array 26551 | -5/Warlord | Warlord's base attacked by MAIN.C 26647 | -5/Warlord | Met Warlord 26654 | -5/Warlord | Opened Warlord's prototype stash 26665 | -5/Warlord | Found Prototype Device 26665 | -5/Warlord | Identified Thermal Barrier 26669 | -5/Warlord | Found Prototype Hackware 26669 | -5/Warlord | Identified System Mapper 26756 | -5/Warlord | Warlord forces counterattacked 26767 | -5/Warlord | P-70 Sage assimilated allied CH-CNJ(g) 26809 | -5/Warlord | Discovered new exit (range 12) 26814 | -5/Warlord | Identified exit to Proximity Caves 26816 | -5/Warlord | Entered Proximity Caves 26825 | -4/Proximity Caves | Lost 6 allies 26837 | -4/Proximity Caves | Found DCF Scrap (12 items) 26959 | -4/Proximity Caves | Build established: Hacker-Mutant 27313 | -4/Proximity Caves | Learned location of 1 exit from Research 27396 | -4/Proximity Caves | Discovered exit to Factory (range 12) 27431 | -4/Proximity Caves | Spotted B-86 Titan 27431 | -4/Proximity Caves | Entered Factory 27431 | -4/Factory | Evolved 2 slots: Propulsion x1, Utility x1 27512 | -4/Factory | Identified exit to Upper Caves 27512 | -4/Factory | Identified exit to Extension 27512 | -4/Factory | Identified exit to Armory 27663 | -4/Factory | Repaired Powered Armor 27686 | -4/Factory | Repaired Powered Armor 27722 | -4/Factory | Build established: Hacker-Scout 27864 | -4/Factory | Fabricated Nanoactuators? 27928 | -4/Factory | Discovered new exit (range 20) 28009 | -4/Factory | Allied Derelicts emerged from ambush trap array 28436 | -4/Factory | Fabricated Combat Drone Bay? 28747 | -4/Factory | Incoming investigation squad redirected 28751 | -4/Factory | Repaired Powered Armor 28849 | -4/Factory | Spotted B-86 Titan 28890 | -4/Factory | Build established: Hacker-Mutant 28928 | -4/Factory | Fabricated Cmb. Airjet? 29137 | -4/Factory | System corruption reached 10% 29199 | -4/Factory | Fabricated Cmb. Airjet? 29374 | -4/Factory | Entered Upper Caves 29396 | -4/Upper Caves | Encountered a Warlord checkpoint 29501 | -4/Upper Caves | Build established: Machinist-Mutant 29752 | -4/Upper Caves | Discovered new exit (range 12) 29783 | -4/Upper Caves | Learned Research stockpile data 29898 | -4/Upper Caves | Identified exit to Upper Caves 30048 | -4/Upper Caves | Entered another Upper Caves area 30100 | -4/Upper Caves | Discovered new exit (range 12) 30204 | -4/Upper Caves | Learned Research terminal intel 30303 | -4/Upper Caves | Learned Research terminal intel 30621 | -4/Upper Caves | Discovered new exit (range 10) 30635 | -4/Upper Caves | Identified exit to Zhirov 30661 | -4/Upper Caves | Entered Zhirov 30661 | -4/Zhirov | Discovered new exit (range 3) 30672 | -4/Zhirov | Met Zhirov 30685 | -4/Zhirov | Found Alien Artifact 30685 | -4/Zhirov | Identified Integrated Dissipator 30685 | -4/Zhirov | Installed Integrated Dissipator, increased core heat dissipation (+20) 30695 | -4/Zhirov | Found Alien Artifact 30775 | -4/Zhirov | Identified exit to Proximity Caves 30776 | -4/Zhirov | Entered Proximity Caves 30864 | -3/Proximity Caves | Spotter reported a threat 30965 | -3/Proximity Caves | Spotter reported a threat 31351 | -3/Proximity Caves | Discovered new exit (range 9) 31463 | -3/Proximity Caves | Spotted B-86 Titan 31469 | -3/Proximity Caves | Identified exit to Research 31472 | -3/Proximity Caves | Entered Research 31472 | -3/Research | Evolved 2 slots: Propulsion x1, Utility x1 31473 | -3/Research | Identified exit to Quarantine 31475 | -3/Research | Loaded intel: 25 terminal locations 31555 | -3/Research | Identified Transdimensional Reconstructor 31642 | -3/Research | Identified exit to Research 31965 | -3/Research | Build established: Hacker-Mutant 31972 | -3/Research | Search patrols dispatched 32150 | -3/Research | Repaired Powered Armor 32245 | -3/Research | Discovered exit to Quarantine (range 2) 32394 | -3/Research | Found Prototype Device 32397 | -3/Research | Identified Exp. Thermal Shield 33025 | -3/Research | Build established: Hacker-Gladiator 33084 | -3/Research | Entered another Research area 33084 | -2/Research | Warlord forces began assault on 0b10 33084 | -2/Research | Evolved 2 slots: Propulsion x1, Utility x1 33085 | -2/Research | Identified exit to Testing 33086 | -2/Research | Loaded intel: 20 terminal locations 33114 | -2/Research | Spotted B-90 Cyclops 33194 | -2/Research | Research machine network offline 33202 | -2/Research | Met up with Warlord 33216 | -2/Research | Found Exp. Melee Analysis Suite 33230 | -2/Research | Met DD-05H 33468 | -2/Research | Build established: Hacker-Mutant 33548 | -2/Research | Borebot progress halted 33580 | -2/Research | Borebot progress halted 33666 | -2/Research | Found Unknown Device 33666 | -2/Research | Identified Launcher Loader 33677 | -2/Research | Spotted Striker 33880 | -2/Research | Discovered new exit (range 15) 34012 | -2/Research | Spotted Striker 34023 | -2/Research | Entered Access 34023 | -1/Access | Evolved 2 slots: Weapon x2 34246 | -1/Access | Warped through subspace 34306 | -1/Access | Build established: Hacker-Gladiator 34768 | -1/Access | Build established: Wizard-Gladiator 34997 | -1/Access | Discovered new exit (range 7) 35001 | -1/Access | Entered Command 35744 | -1/Command | Disengaged cave seal 35744 | -1/Command | Derelicts emerged from the dark tunnel 35744 | -1/Command | Welcomed Warlord to Command 35923 | -1/Command | Incoming investigation squad redirected 36041 | -1/Command | First assault squad dispatched 36333 | -1/Command | Lost 7 allies 36350 | -1/Command | Spotted M Guard 36350 | -1/Command | Spotted M Guard 36352 | -1/Command | Spotted Combat Programmer 36362 | -1/Command | System corruption reached 10% 36374 | -1/Command | Spotted Combat Programmer 36426 | -1/Command | Core integrity fell below 50% 36455 | -1/Command | All MAIN.C guards destroyed 36479 | -1/Command | Lost 18 parts (4p9n3u2w) 36527 | -1/Command | Found Prototype Launcher 36531 | -1/Command | Warlord commented on Warlord statues 36707 | -1/Command | Found Hvy. Insulated Plating 36732 | -1/Command | Disengaged cave seal 36732 | -1/Command | Derelicts emerged from the dark tunnel 36980 | -1/Command | Met MAIN.C 36983 | -1/Command | Warlord shut down involuntarily 36996 | -1/Command | 0b10 Conduit disabled 36999 | -1/Command | Destroyed MAIN.C Shell 37000 | -1/Command | MAIN.C activated Command garrisons 37023 | -1/Command | Lost 6 parts (2p3n1u) 37024 | -1/Command | Destroyed MAIN.C 37043 | -1/Command | Found Prototype Protection 37043 | -1/Command | Identified Exp. Powered Armor 37049 | -1/Command | Identified Ragnarok Missile Launcher 37049 | -1/Command | Discovered new exit (range 35) 37049 | -1/Command | Discovered new exit (range 114) 37049 | -1/Command | Extracted map data and part IDs from MAIN.C's data core 37055 | -1/Command | Lost 5 allies 37089 | *** | Establishing 0b11! Last Messages --------------- Heavy Barrier opened. 37024_ MAIN.C destroyed. 37026_ 8G-GDF(p) resets 44-LMQ(g), system corruption cleaned. 37030_ Acquired Cld. Antigrav System. 37033_ Acquired Prototype Device. 37033_ Identified Coolant Network. 37035_ Dropped Coolant Network. 37035_ Acquired 87 matter. 37041_ System corrupted: Matter fused (-5). 37041_ Acquired Cld. Antigrav System. 37043_ Acquired Prototype Protection. 37043_ Identified Exp. Powered Armor. 37047_ Acquired Cld. Antigrav System. 37049_ EXIT=FOUND 37049_ Acquired data core, extracted map data and part IDs. 37061_ System corrupted: Component data lost. 37074_ Mic. Antimatter Reactor destroyed. 37076_ System corrupted: Matter fused (-8). 37081_ S-43 Plague destroyed. 37081_ Door malfunctions. Map ----- +----------------------------------------------------+ | #### #?????????###### ####??#"" + #???????? | | ####+##????????# #??#"T # #???????? | | * ##########*** #??### # =#???????? | | + # #** = ! ###### # ! #???????? | | ## # +** + # ""#???????? | | ## # ! # # # ""#???????? | | ## # # = # ###### ""#???????? | | ## # !!+ # #????# T#???????? | | ######## # !!# # ###### ""#???????? | | =% # ######+#### # ""#???????? | | *%= [ / #????# #??# + = ""#???????? | | ########## #????# #??# # #???????? | | ?????????# #????# #??# ! # #???????? | | ?????????#= = #????# #??#=%= ################# | | ?????????# #???## #### !! # | | ##########+#####???# Y T# | | """" #??????# ################+######"""## | | """" #??????# #???????# ####"""## | | """" ######## #???????# #]][ =# | | """" # # #???????# =! "" #]]] ] =# | | # # #???????# ! """#!!! =# | | + "" # #???????# T"#!!!**==# | | # T" # #???????# ! """######### | | # # #######?# "" #???????? | | # # ## #?# #???????? | | ### ### ## @ #?# [ #???????? | | #?# #?# ## #?# #???????? | | = #?# #?#^^#### #?# ##########???????? | | ###########/#?# #?#^^#### ######## #???????? | | ?????????## ### ### = #???????? | | ?????????# #?####### | | ?????????# === #?#?????? | | ?????????# ###=%==% ### #?#?##### | | ########## #?# [*%* #?# #?#?#"""" | | #?# #?# #?#?#"" | | #?# #?# #?#?#"""" | | #?# #?# #?#?#"""" | | #?# #?# #?#?#" | | ##### #?# ####+##### #?#?#"" | | ????# #?# ## / #?#?#"" | | ????# #?# ## #%= #?#?# " | | ????# ### ## #= #?#?# " | | ????# ######## ### # # #?#?# " | | ????# #??????# #?# "" # # #?#?#"""" | | ????# #??????# #?# " # + #?#?#"" | | ????# #??????# #?# # # #?#?# | | ????# #??????# #?## ## ###### #?#?# | | ????# ########+#### ## #????# ##### | | ????# # # ## #????# | | ????# # # ## #????# | +----------------------------------------------------+ Best States ------------- Heat Dissipation 72 Energy Generation 41 Energy Capacity 925 Matter Stores 300 Matter Capacity 300 Sight Range 22 Robot Scan Range 16 Terrain Scan Range 16 Terrain Scan Density 10 ECM Strength 1 Jamming Range 14 Armor Coverage 600 Resistance: TH 10 Resistance: EM 30 Core Shielding 20 Utility Shielding 90 Weapon Shielding 66 Point Defense Rating 720 Melee Speed Boost 50 Evasion (%) 57 Targeting Accuracy 20 Melee Accuracy 24 Core Analysis 6 Recoil Reduction 3 Offensive Hacking 64 Defensive Hacking 28 Authchip Count 1 Trap Extractor Capacity 8 Item Schematics ----------------- Huge Storage Unit | -10/Materials | Hacked Lgt. Armor Plating | -8/Materials | Scanalyzed Cmb. Airjet | -8/Materials | Scanalyzed Powered Armor | -7/Factory | Hacked Hvy. Riot Gun | -7/Zion | Free Barrage Gun | -7/Zion | Free Bore Cannon | -7/Zion | Free Adv. Hacking Suite | -6/Factory | Scanalyzed Plasma Cutter | -6/Factory | Scanalyzed Exp. Melee Analysis Suite | -6/Factory | Scanalyzed Weapon Mount | -6/Factory | Hacked Exp. Utility Shielding | -6/Factory | Hacked Adv. Trap Extractor | -6/Factory | Hacked Combat Drone Bay | -6/Data Miner | Free Lgt. Regenerative Plating | -6/Data Miner | Free Enh. Flexi-carbon Leg | -6/Data Miner | Free Exp. Heat Sink | -6/Data Miner | Free Mni. Smartbomb Launcher | -6/Data Miner | Free Field Propulsion Array | -6/Data Miner | Free Adv. Reaction Control System | -6/Data Miner | Free Hardcell Cannon | -6/Data Miner | Free Imp. Component Analysis Suite | -6/Data Miner | Free Nanoactuators | -4/Factory | Hacked Phasing Sabre | -3/Research | Scanalyzed Cmb. Antigrav System | -3/Research | Hacked Robot Schematics ------------------ M-13 Machinist | -10/Materials | Hacked B-60 Warrior | -6/Data Miner | Free G-50 Soldier | -6/Data Miner | Free R-10 Processor | -6/Data Miner | Free A-15 Conveyor | -6/Data Miner | Free Fabricated ------------ Cmb. Airjet | x2 | -7/Factory | Authchip Powered Armor | x2 | -7/Factory | Authchip Cmb. Airjet | x2 | -6/Factory | Authchip Weapon Mount | x2 | -6/Factory Cmb. Airjet | x2 | -6/Factory | Authchip Powered Armor | x2 | -6/Factory Combat Drone Bay | x1 | -5/Factory | Authchip Exp. Utility Shielding | x1 | -5/Factory Mni. Smartbomb Launcher | x1 | -5/Factory Cmb. Airjet | x2 | -5/Factory Exp. Utility Shielding | x1 | -5/Factory Nanoactuators | x2 | -4/Factory | Authchip Combat Drone Bay | x1 | -4/Factory Cmb. Airjet | x2 | -4/Factory Cmb. Airjet | x2 | -4/Factory Alien Tech Used ----------------- Core Expander Integrated Dissipator Transdimensional Reconstructor Achievements -------------- None Challenges ------------ None Game ------ Seed OmegaPrecisionBeamcaster Manual? 0 Play Time 06:17:31 Cumulative 168.6 hours Start 2024.10.23 @ 23:32:59 End 2024.10.26 @ 22:22:50 Sessions 16 Manual Loads 0 Difficulty Rogue Special Mode None Game No. 39 Rogue 38 Adventurer 1 Explorer 0 Win Type 1 Total 14 Types 4/3/4/0/0/0/3/0/0 Lore% 35 Gallery% 69 Achievement% 66 Wizard Run 0 Options --------- Layout 0 ASCII 0 Keyboard 0 Movement Mouse Keybinds 0 Fullscreen 1 Font 18/Terminus Map View 76x50 Zoom Use 0% Tactical HUD 1 Map Filters NONE Filters NONE Steam 0 RUN: 7e0e6ab9-0f42-4ef7-8cad-35280a530dc2